Workbook

Sheet Лист1
B12: Согласовано | I12: Разработано и утвеждено
B13: Руководитель общеобразовательного учреждения | I13: Директор ООО "ФУДСОЦСЕРВИС"
B15: ________________________ | I15: ________________Э.Р. Харламова
B20: Примерное цикличное десятидневное меню
B21: Для организации питания обучающихся общеобразовательных организаций Республики Татарстан
B22: в возрасте с 12 лет и старше (5-11 классы)
B49: ПРИМЕРНОЕ ДВУХНЕДЕЛЬНОЕ МЕНЮ ДЛЯ ОБУЧАЮЩИХСЯ В ОБЩЕОБРАЗОВАТЕЛЬНЫХ ОРГАНИЗАЦИЯХ С 5 по 11 КЛАССЫ
B50: (общеобразовательные организации с режимом обучения до 6 часов)
A52: № рецептуры | B52: Наименование блюд | C52: Выход,г | D52: Белки, г | E52: Жиры, г | F52: Углеводы, г | G52: Калорийность, ккал | H52: Витамин B1, мг | I52: Витамин С, мг | J52: Витамин А, мг | K52: Витамин Е, мг | L52: Ca, мг | M52: P, мг | N52: Mg, мг | O52: Fe, мг
B53: 1-ая неделя
B54: 1 день
A55: Хим.состав и калорийность российских продуктов питания табл 9 стр 184 , 2012 Дели + | B55: Плоды и ягоды свежие (яблоки) | C55: 100 | D55: 0.40 | E55: 0.40 | F55: 9.80 | G55: 47.00 | H55: 0.03 | I55: 10.00 | K55: 0.20 | L55: 16.00 | M55: 11.00 | N55: 9.00 | O55: 2.20
A56: ТТК | B56: Сырники из творога с кашей молочной "Дружба" с маслом сливочным | C56: 60/200/3 | D56: 16.29 | E56: 18.33 | F56: 59.51 | G56: 459.80 | H56: 0.13 | I56: 1.02 | J56: 59.52 | K56: 1.82 | L56: 213.76 | M56: 274.94 | N56: 47.35 | O56: 1.13
A57: № 379 Сбор.рец. На прод-ию для обуч. Во всех образ.учреж-Дели 2017 | B57: Кофейный напиток с молоком | C57: 200 | D57: 3.2 | E57: 2.7 | F57: 6.0 | G57: 60.7 | H57: 0.0 | I57: 1.3 | J57: 20.0 | K57: 0.0 | L57: 125.8 | M57: 90.0 | N57: 14.0 | O57: 0.1
A58: Хим.состав и калорийность российских продуктов питания,табл 6, стр 144 , 2012 Дели + | B58: Хлеб ржаной | C58: 40 | D58: 2.64 | E58: 0.48 | F58: 15.84 | G58: 79.20 | H58: 0.07 | I58: 0.00 | J58: 0.00 | K58: 0.56 | L58: 11.60 | M58: 60.00 | N58: 18.80 | O58: 1.56
B59: Итого: | C59: 603 | D59: =SUM(D55:D58) -> 22.50 | E59: 21.89 | F59: 91.15 | G59: 646.70 | H59: 0.27 | I59: 12.32 | J59: 79.52 | K59: 2.58 | L59: 367.14 | M59: 435.94 | N59: 89.15 | O59: 5.02 | P59: 25% | Q59: 25% | R59: 25%
B61: 2 день
A62: ТТК | B62: Салат из моркови с яблоками | C62: 100 | D62: 1.06 | E62: 4.22 | F62: 8.52 | G62: 84.85 | H62: 0.05 | I62: 4.38 | J62: 0.00 | K62: 0.35 | L62: 23.99 | M62: 44.53 | N62: 30.39 | O62: 1.07
A63: ТТК | B63: Котлета из мяса птицы с макаронными изделиями отварными, с маслом сливочным | C63: 75/180/3 | D63: 13.15 | E63: 13.36 | F63: 36.01 | G63: 323.64 | H63: 0.10 | I63: 0.50 | J63: 23.90 | K63: 4.80 | L63: 31.70 | M63: 147.63 | N63: 38.18 | O63: 2.08
A64: №349 Сбор.рец. На прод-ию для обуч. Во всех образ.учреж-Дели 2017 | B64: Компот из сухофруктов (75С) | C64: 200 | D64: 0.66 | E64: 0.09 | F64: 22.03 | G64: 92.80 | H64: 0.02 | I64: 0.73 | J64: 0.00 | K64: 0.51 | L64: 32.18 | M64: 23.44 | N64: 17.46 | O64: 0.67
A65: Хим.состав и калорийность российских продуктов питания,табл 6, стр 144 , 2012 Дели + | B65: Хлеб ржаной | C65: 35 | D65: 2.31 | E65: 0.42 | F65: 13.86 | G65: 69.30 | H65: 0.06 | I65: 0.00 | J65: 0.00 | K65: 0.49 | L65: 10.15 | M65: 52.50 | N65: 16.45 | O65: 1.37
B66: Итого: | C66: 593 | D66: =SUM(D62:D65) -> 17.18 | E66: =SUM(E62:E65) -> 18.09 | F66: 80.42 | G66: 570.59 | H66: 0.23 | I66: 5.60 | J66: 23.90 | K66: 6.14 | L66: 98.02 | M66: 268.10 | N66: 102.47 | O66: 5.17 | P66: =#REF!+#REF!+#REF!+P64+#REF!+P65 ->  | Q66: =#REF!+#REF!+#REF!+Q64+#REF!+Q65 ->  | R66: 20%
B68: 3 день
A69: № 15 Сбор.рец. На прод-ию для обуч. Во всех образ.учреж-Дели -2017 | B69: Сыр порционно | C69: 10 | D69: 2.63 | E69: 2.66 | F69: 0.00 | G69: 34.33 | H69: 0.00 | I69: 0.07 | J69: 21.00 | K69: 0.04 | L69: 100.00 | M69: 60.00 | N69: 5.50 | O69: 0.07
A70: № 260 Сбор.рец. На прод-ию для обуч. Во всех образ.учреж-Дели -2017 | B70: Гуляш из говядины | C70: 50/50 | D70: 10.39 | E70: 14.79 | F70: 10.30 | G70: 221.00 | H70: 0.03 | I70: 0.92 | K70: 2.61 | L70: 61.81 | M70: 154.15 | N70: 22.03 | O70: 3.06
A71: № 302 Сбор.рец. На прод-ию для обуч. Во всех образ.учреж-Дели 2017 | B71: Каша гречневая рассыпчатая | C71: 180 | D71: 4.52 | E71: 3.75 | F71: 47.66 | G71: 256.80 | H71: 0.25 | I71: 0.00 | J71: 0.00 | K71: 0.48 | L71: 28.79 | M71: 248.82 | N71: 168.62 | O71: 5.65 | P71: 0 | Q71: 0
A72: № 377 Сбор.рец. На прод-ию для обуч. Во всех образ.учреж-Дели 2017 | B72: Чай с сахаром, с лимоном | C72: 185/10/5 | D72: 0.11 | E72: 0.02 | F72: 10.15 | G72: 41.32 | H72: -0.00 | I72: 2.03 | J72: 0.00 | K72: 0.01 | L72: 13.25 | M72: 3.96 | N72: 2.16 | O72: 0.33
A73: Хим.состав и калорийность российских продуктов питания табл 6 стр 134 , 2012 Дели + | B73: Хлеб пшеничный | C73: 20 | D73: 1.52 | E73: 0.16 | F73: 9.84 | G73: 47.00 | H73: 0.02 | I73: 0.00 | J73: 0.00 | K73: 0.22 | L73: 4.00 | M73: 13.00 | N73: 2.80 | O73: 0.22
A74: Хим.состав и калорийность российских продуктов питания,табл 6, стр 144 , 2012 Дели + | B74: Хлеб ржаной | C74: 40 | D74: 2.64 | E74: 0.48 | F74: 15.84 | G74: 79.20 | H74: 0.07 | I74: 0.00 | J74: 0.00 | K74: 0.56 | L74: 11.60 | M74: 60.00 | N74: 18.80 | O74: 1.56
B75: Итого: | C75: 550 | D75: =SUM(D69:D74) -> 21.82 | E75: =SUM(E69:E74) -> 21.86 | F75: 93.79 | G75: 679.65 | H75: 0.37 | I75: 3.02 | J75: 21.00 | K75: 3.92 | L75: 219.45 | M75: 539.93 | N75: 219.91 | O75: 10.90 | P75: 25% | Q75: 25% | R75: 25%
P77: =P71/0.9 -> 0.00 | Q77: =Q71/0.9 -> 0.00
B80: 4 день
A81: ТТК | B81: Птица запеченная | C81: 100 | D81: 10.42 | E81: 12.43 | F81: 8.65 | G81: 192 | H81: 0.06 | I81: 1.28 | J81: 51.8 | K81: 0.8 | L81: 41.26 | M81: 216.4 | N81: 23.42 | O81: 1.78
A82: № 312 Сбор.рец. На прод-ию для обуч. Во всех образ.учреж-Дели -2017 | B82: Пюре картофельное с маслом сливочным | C82: 150/3 | D82: 3.08 | E82: 6.25 | F82: 20.47 | G82: 150.45 | H82: 0.14 | I82: 18.16 | J82: 8.00 | K82: 0.20 | L82: 37.46 | M82: 87.20 | N82: 27.75 | O82: 1.01
A83: ТТК Хим.состав и калорийность российских продуктов питания,табл 8, стр 168 , 2012 Дели +, | B83: Свекла отварная дольками (доп.гарнир) | C83: 60 | D83: 1.08 | E83: 0.06 | F83: 5.88 | G83: 28.80 | H83: 0.01 | I83: 5.34 | J83: 0.00 | K83: 0.06 | L83: 27.00 | M83: 30.60 | N83: 15.60 | O83: 1.02
A84: ТТК | B84: Напиток из свежих фруктов (75С) | C84: 200 | D84: 0.34 | E84: 0.17 | F84: 21.46 | G84: 103.50 | H84: 0.02 | I84: 3.17 | J84: 0.00 | K84: 0.13 | L84: 16.67 | M84: 7.05 | N84: 7.78 | O84: 0.88
A85: Хим.состав и калорийность российских продуктов питания,табл 6, стр 144 , 2012 Дели + | B85: Хлеб ржаной | C85: 40 | D85: 2.64 | E85: 0.48 | F85: 15.84 | G85: 79.20 | H85: 0.07 | I85: 0.00 | J85: 0.00 | K85: 0.56 | L85: 11.60 | M85: 60.00 | N85: 18.80 | O85: 1.56
B86: Итого: | C86: =C81+153+C83+C84+C85 -> 553 | D86: =SUM(D81:D85) -> 17.56 | E86: 19.29 | F86: 72.80 | G86: =SUM(G81:G85) -> 553.95 | H86: 0.30 | I86: 27.95 | J86: 59.80 | K86: 1.75 | L86: 133.98 | M86: 401.25 | N86: 93.35 | O86: 6.25 | P86: =P83+P81+P82+P84+P85 -> 0.00 | Q86: =Q83+Q81+Q82+Q84+Q85 -> 0.00 | R86: 20%
P87: =#REF!*100/60 ->  | Q87: =#REF!*100/60 -> 
B88: 5 день
A89: № 15 Сбор.рец. На прод-ию для обуч. Во всех образ.учреж-Дели 2017 | B89: Сыр порционно | C89: 10 | D89: 2.63 | E89: 2.66 | F89: 0.00 | G89: 34.33 | H89: 0.00 | I89: 0.07 | J89: 21.00 | K89: 0.04 | L89: 100.00 | M89: 60.00 | N89: 5.50 | O89: 0.07
A90: №279,331 Сбор.рец. На прод-ию для питания детей в дошк образоват учрежд-Дели 2017 | B90: Тефтели мясные в сметанно-томатном соусе | C90: 60/40 | D90: 7.08 | E90: 11.94 | F90: 8.36 | G90: 144.00 | H90: 0.05 | I90: 0.28 | J90: 29.62 | K90: 0.42 | L90: 20.73 | M90: 80.20 | N90: 15.52 | O90: 0.64
A91: № 203 Сбор.рец. На прод-ию для обуч. Во всех образ.учреж-Дели 2017 | B91: Макаронные изделия отварные | C91: 200 | D91: 7.36 | E91: 6.02 | F91: 35.26 | G91: 224.60 | H91: 0.07 | I91: 0.00 | J91: 0.00 | K91: 1.29 | L91: 6.48 | M91: 49.56 | N91: 28.16 | O91: 1.47
A92: №349 Сбор.рец. На прод-ию для обуч. Во всех образ.учреж-Дели 2017 | B92: Компот из сухофруктов (75С) | C92: 200 | D92: 0.66 | E92: 0.09 | F92: 22.03 | G92: 92.80 | H92: 0.02 | I92: 0.73 | J92: 0.00 | K92: 0.51 | L92: 32.18 | M92: 23.44 | N92: 17.46 | O92: 0.67
A93: Хим.состав и калорийность российских продуктов питания,табл 6, стр 144 , 2012 Дели + | B93: Хлеб ржаной | C93: 40 | D93: 2.64 | E93: 0.48 | F93: 15.84 | G93: 79.20 | H93: 0.07 | I93: 0.00 | J93: 0.00 | K93: 0.56 | L93: 11.60 | M93: 60.00 | N93: 18.80 | O93: 1.56
B94: Итого: | C94: 550 | D94: =D90+D91+D92+D93 -> 17.74 | E94: =E90+E91+E92+E93 -> 18.53 | F94: 80.39 | G94: 540.60 | H94: 0.21 | I94: 1.00 | J94: 29.62 | K94: 2.78 | L94: 70.99 | M94: 213.20 | N94: 79.94 | O94: 4.34 | P94: 0.00 | Q94: 0.00 | R94: 20%
B95: Итого за 5 дней 1 недели: | C95: =C66+C59+C75+C86+C94 -> 2849 | D95: 96.79 | E95: 99.65 | F95: 418.56 | G95: 2991.49 | H95: 1.38 | I95: 49.89 | J95: 213.84 | K95: 17.17 | L95: 889.58 | M95: 1858.42 | N95: 584.82 | O95: 31.68 | P95: =P66+P59+P75+P86+#REF!+P94 ->  | Q95: =Q66+Q59+Q75+Q86+#REF!+Q94 -> 
A102: № рецептуры | B102: Наименование блюд | C102: Выход,г | D102: Белки, г | E102: Жиры, г | F102: Углеводы, г | G102: Калорийность, ккал | H102: Витамин B1, мг | I102: Витамин С, мг | J102: Витамин А, мг | K102: Витамин Е, мг | L102: Ca, мг | M102: P, мг | N102: Mg, мг | O102: Fe, мг
B103: 2-ая неделя
B104: 1 день
A105: ТТК | B105: Сырники из творога с кашей пшенной молочной с маслом сливочным | C105: 60/220/3 | D105: 17.90 | E105: 21.21 | F105: 47.96 | G105: 442.60 | H105: 0.15 | I105: 1.21 | J105: 62.48 | K105: 1.83 | L105: 239.96 | M105: 305.69 | N105: 54.79 | O105: 1.28 | P105: ='[1]Меню младшие 1-4 кл'!#REF!/0.9 ->  | Q105: ='[1]Меню младшие 1-4 кл'!#REF!/0.9 -> 
A106: ТТК | B106: Чай "Витаминный" с шиповником | C106: 185/10/5 | D106: 0.24 | E106: 0.09 | F106: 12.43 | G106: 54.20 | H106: 0.00 | I106: 50.03 | J106: 0.00 | K106: 0.19 | L106: 13.95 | M106: 3.65 | N106: 2.25 | O106: 0.42
A107: Хим.состав и калорийность российских продуктов питания табл 6 стр 134 , 2012 Дели + | B107: Хлеб пшеничный | C107: 30 | D107: 2.28 | E107: 0.24 | F107: 14.76 | G107: 70.50 | H107: 0.03 | I107: 0.00 | J107: 0.00 | K107: 0.33 | L107: 6.00 | M107: 19.50 | N107: 4.20 | O107: 0.33
A108: Хим.состав и калорийность российских продуктов питания,табл 6, стр 144 , 2012 Дели + | B108: Хлеб ржаной | C108: 40 | D108: 2.64 | E108: 0.48 | F108: 15.84 | G108: 79.20 | H108: 0.07 | I108: 0.00 | J108: 0.00 | K108: 0.56 | L108: 11.60 | M108: 60.00 | N108: 18.80 | O108: 1.56
B109: Итого: | C109: 553 | D109: =SUM(D105:D108) -> 23.06 | E109: =SUM(E105:E108) -> 22.02 | F109: 90.99 | G109: 646.50 | H109: 0.25 | I109: 51.24 | J109: 62.48 | K109: 2.91 | L109: 271.51 | M109: 388.84 | N109: 80.04 | O109: 3.59 | P109: =SUM(P105:P108) ->  | Q109: =SUM(Q105:Q108) ->  | R109: 25%
B111: 2 день
A112: Хим.состав и калорийность российских продуктов питания табл 9 стр 184 , 2012 Дели + | B112: Плоды и ягоды свежие (апельсин) | C112: 100 | D112: 0.90 | E112: 0.20 | F112: 8.10 | G112: 43.00 | H112: 0.04 | I112: 60.00 | K112: 0.20 | L112: 34.00 | M112: 23.00 | N112: 13.00 | O112: 0.30
A113: № 143,241 Сбор.рец. На прод-ию для обуч. Во всех образ.учреж-Дели 2017 | B113: Овощи тушеные с мясом | C113: 50/150 | D113: 12.48 | E113: 15.68 | F113: 19.34 | G113: 271.50 | H113: 0.12 | I113: 18.77 | J113: 39.00 | K113: 4.67 | L113: 89.15 | M113: 148.63 | N113: 39.69 | O113: 2.23
A114: №349 Сбор.рец. На прод-ию для обуч. Во всех образ.учреж-Дели 2017 | B114: Компот из сухофруктов (75С) | C114: 200 | D114: 0.66 | E114: 0.09 | F114: 22.03 | G114: 92.80 | H114: 0.02 | I114: 0.73 | J114: 0.00 | K114: 0.51 | L114: 32.18 | M114: 23.44 | N114: 17.46 | O114: 0.67
A115: Хим.состав и калорийность российских продуктов питания табл 6 стр 134 , 2012 Дели + | B115: Хлеб пшеничный | C115: 30 | D115: 2.28 | E115: 0.24 | F115: 14.76 | G115: 70.50 | H115: 0.03 | I115: 0.00 | J115: 0.00 | K115: 0.33 | L115: 6.00 | M115: 19.50 | N115: 4.20 | O115: 0.33
A116: Хим.состав и калорийность российских продуктов питания,табл 6, стр 144 , 2012 Дели + | B116: Хлеб ржаной | C116: 30 | D116: 1.98 | E116: 0.36 | F116: 11.88 | G116: 59.40 | H116: 0.05 | I116: 0.00 | J116: 0.00 | K116: 0.42 | L116: 8.70 | M116: 45.00 | N116: 14.10 | O116: 1.17
B117: Итого: | C117: 560 | D117: =D112+D113+D114+D115+D116 -> 18.30 | E117: 17.77 | F117: =F112+F113+F114+F115+F116 -> 76.11 | G117: 537.20 | H117: 0.26 | I117: 79.49 | J117: 39.00 | K117: 6.13 | L117: 170.03 | M117: 259.57 | N117: 88.45 | O117: 4.69 | P117: =P112+P113+P114+P115+P116 -> 0.00 | Q117: =Q112+Q113+Q114+Q115+Q116 -> 0.00 | R117: 20%
B119: 3 день
A120: Хим.состав и калорийность российских продуктов питания табл 9 стр 184 , 2012 Дели + | B120: Плоды и ягоды свежие (яблоки) | C120: 100 | D120: 0.4 | E120: 0.4 | F120: 9.8 | G120: 47 | H120: 0.03 | I120: 10 | K120: 0.2 | L120: 16 | M120: 11 | N120: 9 | O120: 2.2
A121: № 265 Сбор.рец. На прод-ию для обуч. Во всех образ.учреж-Дели -2017 | B121: Плов из говядины с рисовой крупой | C121: 50/200 | D121: 18.97 | E121: 23.12 | F121: 51.79 | G121: 509.80 | H121: 0.08 | I121: 2.31 | J121: 0.00 | K121: 5.25 | L121: 22.04 | M121: 285.70 | N121: 63.75 | O121: 4.13
A122: № 376 Сбор.рец. На прод-ию для обуч. Во всех образ.учреж-Дели 2017 | B122: Чай с сахаром | C122: 190/10 | D122: 0.07 | E122: 0.02 | F122: 10.01 | G122: 40.00 | H122: 0.00 | I122: 0.03 | J122: 0.00 | K122: 0.00 | L122: 10.95 | M122: 2.80 | N122: 1.40 | O122: 0.27
A123: Хим.состав и калорийность российских продуктов питания табл 6 стр 134 , 2012 Дели + | B123: Хлеб пшеничный | C123: 20 | D123: 1.52 | E123: 0.16 | F123: 9.84 | G123: 47.00 | H123: 0.02 | I123: 0.00 | J123: 0.00 | K123: 0.22 | L123: 4.00 | M123: 13.00 | N123: 2.80 | O123: 0.22
A124: Хим.состав и калорийность российских продуктов питания,табл 6, стр 144 , 2012 Дели + | B124: Хлеб ржаной | C124: 30 | D124: 1.98 | E124: 0.36 | F124: 11.88 | G124: 59.40 | H124: 0.05 | I124: 0.00 | J124: 0.00 | K124: 0.42 | L124: 8.70 | M124: 45.00 | N124: 14.10 | O124: 1.17
B125: Итого: | C125: 600 | D125: =D120+D121+D122+D123+D124 -> 22.94 | E125: 24.06 | F125: 93.32 | G125: 703.20 | H125: 0.18 | I125: 12.34 | J125: 0.00 | K125: 6.09 | L125: 61.69 | M125: 357.50 | N125: 91.05 | O125: 7.99 | P125: 0.00 | Q125: 0.00 | R125: 25%
B127: 4 день
A128: ТТК | B128: Салат из моркови | C128: 100 | D128: 1.73 | E128: 3.09 | F128: 16.63 | G128: 81.70 | H128: 0.06 | I128: 3.36 | J128: 0.00 | K128: 13.40 | L128: 25.76 | M128: 52.77 | N128: 36.05 | O128: 0.66
A129: ТТК | B129: Котлета из мяса птицы с макаронными изделиями отварными, с маслом сливочным | C129: 75/180/3 | D129: 13.15 | E129: 13.36 | F129: 36.01 | G129: 323.64 | H129: 0.10 | I129: 0.50 | J129: 23.90 | K129: 4.80 | L129: 31.70 | M129: 147.63 | N129: 38.18 | O129: 2.08
A130: № 376 Сбор.рец. На прод-ию для обуч. Во всех образ.учреж-Дели 2017 | B130: Чай "Витаминный" с шиповником | C130: 185/10/5 | D130: 0.24 | E130: 0.09 | F130: 12.43 | G130: 54.20 | H130: 0.00 | I130: 50.03 | J130: 0.00 | K130: 0.19 | L130: 13.95 | M130: 3.65 | N130: 2.25 | O130: 0.42
A131: Хим.состав и калорийность российских продуктов питания,табл 6, стр 144 , 2012 Дели + | B131: Хлеб ржаной | C131: 30 | D131: 1.98 | E131: 0.36 | F131: 11.88 | G131: 59.40 | H131: 0.05 | I131: 0.00 | J131: 0.00 | K131: 0.42 | L131: 8.70 | M131: 45.00 | N131: 14.10 | O131: 1.17
B132: Итого: | C132: 588 | D132: =D128+D129+D130+D131 -> 17.10 | E132: =E128+E129+E130+E131 -> 16.90 | F132: 76.95 | G132: 518.94 | H132: 0.21 | I132: 53.89 | J132: 23.90 | K132: 18.81 | L132: 80.11 | M132: 249.05 | N132: 90.57 | O132: 4.32 | P132: 0.00 | Q132: 0.00 | R132: 20%
B133: 5 день
A134: ТТК | B134: Биточки рыбные с картофельным пюре, с маслом сливочным | C134: 75/200/5 | D134: 13.28 | E134: 17.95 | F134: 38.33 | G134: 349.50 | H134: 0.23 | I134: 24.45 | J134: 23.90 | K134: 4.06 | L134: 83.11 | M134: 239.74 | N134: 65.70 | O134: 2.44 | P134: 1.2114
A135: №342 Сбор.рец. На прод-ию для обуч. Во всех образ.учреж-Дели 2017 | B135: Компот из свежих яблок (75С) | C135: 200 | D135: 0.16 | E135: 0.16 | F135: 17.90 | G135: 74.60 | H135: 0.01 | I135: 0.90 | J135: 0.00 | K135: 0.08 | L135: 13.88 | M135: 4.40 | N135: 5.14 | O135: 0.92
A136: Хим.состав и калорийность российских продуктов питания табл 6 стр 134 , 2012 Дели + | B136: Хлеб пшеничный | C136: 30 | D136: 2.28 | E136: 0.24 | F136: 14.76 | G136: 70.50 | H136: 0.03 | I136: 0.00 | J136: 0.00 | K136: 0.33 | L136: 6.00 | M136: 19.50 | N136: 4.20 | O136: 0.33
A137: Хим.состав и калорийность российских продуктов питания,табл 6, стр 144 , 2012 Дели + | B137: Хлеб ржаной | C137: 40 | D137: 2.64 | E137: 0.48 | F137: 15.84 | G137: 79.20 | H137: 0.07 | I137: 0.00 | J137: 0.00 | K137: 0.56 | L137: 11.60 | M137: 60.00 | N137: 18.80 | O137: 1.56
B138: Итого: | C138: =75+205+C135+C136+C137 -> 550 | D138: =SUM(D134:D137) -> 18.36 | E138: =SUM(E134:E137) -> 18.83 | F138: 86.83 | G138: 573.80 | H138: 0.34 | I138: 25.35 | J138: 23.90 | K138: 5.03 | L138: 114.59 | M138: 323.64 | N138: 93.84 | O138: 5.25 | P138: 1.21 | Q138: 0.00 | R138: 25%
B139: Итого за 5 дней 2 недели: | C139: =C109+C125+C138+C132+C117 -> 2851 | D139: 99.75166667 | E139: 99.59 | F139: 424.1983333 | G139: 2979.64 | H139: 1.249033333 | I139: 222.312 | J139: 149.28 | K139: 38.968 | L139: 697.9263333 | M139: 1578.585667 | N139: 443.9436667 | O139: 25.84183333
B140: ВСЕГО за 10 дней: | C140: =C66+C59+C75+C86+C94+C109+C125+C138+C132+C117 -> 5700 | D140: 196.5421667 | E140: 199.244 | F140: 842.7563333 | G140: 5971.133333 | H140: 2.627966667 | I140: 272.2027 | J140: 363.12 | K140: 56.136 | L140: 1587.502333 | M140: 3437.004667 | N140: 1028.766667 | O140: 57.52503333
B141: В среднем на 1 учащегося в день: | C141: =C140/10 -> 570 | D141: =D140/10 -> 19.65 | E141: 19.92 | F141: 84.28 | G141: 597.11 | H141: 0.26 | I141: 27.22 | J141: 36.31 | K141: 5.61 | L141: 158.75 | M141: 343.70 | N141: 102.88 | O141: 5.75 | P141: =P140/12 ->  | Q141: =Q140/12 ->  | R141: 20-25%
